[Event "*** SCC Grand Prix: Titled Tuesday Blitz"]
[Site "Chess.com"]
[Date "2020.06.02"]
[Round "2"]
[White "kuban1991"]
[Black "korbul"]
[Result "1-0"]
[WhiteElo "2722"]
[BlackElo "2475"]
[TimeControl "180+1"]
[EndTime "10:16:29 PDT"]
[Termination "kuban1991 won by resignation"]

1. Nf3 {[%clk 0:02:58.8]} 1... d5 {[%clk 0:02:59.3]} 2. g3 {[%clk 0:02:58.2]}
2... e6 {[%clk 0:02:59.3]} 3. Bg2 {[%clk 0:02:58.5]} 3... Nf6 {[%clk 0:02:59.4]}
4. O-O {[%clk 0:02:59.1]} 4... Be7 {[%clk 0:02:59.5]} 5. d3 {[%clk 0:02:59.6]}
5... O-O {[%clk 0:02:59.2]} 6. Nbd2 {[%clk 0:03:00.5]} 6... c5 {[%clk
0:02:59.2]} 7. e4 {[%clk 0:03:00.3]} 7... Nc6 {[%clk 0:02:59.3]} 8. e5 {[%clk
0:03:00.3]} 8... Ne8 {[%clk 0:02:58.8]} 9. Re1 {[%clk 0:03:01.2]} 9... Nc7
{[%clk 0:02:58.5]} 10. h4 {[%clk 0:02:59.8]} 10... b5 {[%clk 0:02:58.4]} 11. Nf1
{[%clk 0:02:59.3]} 11... b4 {[%clk 0:02:58.5]} 12. h5 {[%clk 0:02:59.6]} 12...
Nb5 {[%clk 0:02:56.6]} 13. h6 {[%clk 0:02:57.9]} 13... g6 {[%clk 0:02:56.2]} 14.
N1h2 {[%clk 0:02:58.4]} 14... Nbd4 {[%clk 0:02:56.2]} 15. Bf4 {[%clk 0:02:51.4]}
15... a5 {[%clk 0:02:53.5]} 16. c3 {[%clk 0:02:48.6]} 16... Nxf3+ {[%clk
0:02:52.9]} 17. Qxf3 {[%clk 0:02:46.3]} 17... bxc3 {[%clk 0:02:50.9]} 18. bxc3
{[%clk 0:02:45.5]} 18... Rb8 {[%clk 0:02:51]} 19. Rab1 {[%clk 0:02:43]} 19...
Ba6 {[%clk 0:02:49.1]} 20. Ng4 {[%clk 0:02:42.1]} 20... a4 {[%clk 0:02:37.5]}
21. Nf6+ {[%clk 0:02:38.7]} 21... Bxf6 {[%clk 0:02:25.2]} 22. exf6 {[%clk
0:02:39.6]} 22... e5 {[%clk 0:02:25.3]} 23. Qxd5 {[%clk 0:02:17.9]} 23... exf4
{[%clk 0:02:16]} 24. Qxd8 {[%clk 0:01:56.9]} 24... Rfxd8 {[%clk 0:02:08.7]} 25.
Bxc6 {[%clk 0:01:52.2]} 25... Rxb1 {[%clk 0:02:03.4]} 26. Rxb1 {[%clk
0:01:53.1]} 26... fxg3 {[%clk 0:02:03.5]} 27. d4 {[%clk 0:01:50.5]} 27... gxf2+
{[%clk 0:02:02.5]} 28. Kxf2 {[%clk 0:01:49.7]} 28... cxd4 {[%clk 0:02:02.7]} 29.
cxd4 {[%clk 0:01:49.4]} 29... a3 {[%clk 0:02:00.9]} 30. Rb3 {[%clk 0:01:44.7]}
30... Bc4 {[%clk 0:01:23.8]} 31. Rxa3 {[%clk 0:01:43.9]} 31... g5 {[%clk
0:01:22.7]} 32. Ke3 {[%clk 0:01:39.9]} 32... g4 {[%clk 0:01:21.6]} 33. d5 {[%clk
0:01:37.2]} 33... Kh8 {[%clk 0:01:04.8]} 34. Kf4 {[%clk 0:01:35.4]} 34... Rg8
{[%clk 0:00:55.3]} 35. d6 {[%clk 0:01:34.3]} 35... g3 {[%clk 0:00:42.6]} 36.
Rxg3 {[%clk 0:01:32.3]} 36... Rd8 {[%clk 0:00:26.4]} 37. Ra3 {[%clk 0:01:23.1]}
37... Be6 {[%clk 0:00:25.6]} 38. d7 {[%clk 0:01:19.8]} 38... Bxd7 {[%clk
0:00:25.3]} 39. Bxd7 {[%clk 0:01:18.1]} 1-0

[Event "*** SCC Grand Prix: Titled Tuesday Blitz"]
[Site "Chess.com"]
[Date "2020.06.02"]
[Round "2"]
[White "ClassyEl"]
[Black "LyonBeast"]
[Result "0-1"]
[WhiteElo "2573"]
[BlackElo "2937"]
[TimeControl "180+1"]
[EndTime "10:16:32 PDT"]
[Termination "LyonBeast won by resignation"]

1. d4 {[%clk 0:03:00.9]} 1... d5 {[%clk 0:02:58.8]} 2. Nf3 {[%clk 0:03:00.7]}
2... Nf6 {[%clk 0:02:58.4]} 3. Bf4 {[%clk 0:03:00.7]} 3... e6 {[%clk 0:02:57.5]}
4. e3 {[%clk 0:03:01.1]} 4... Bd6 {[%clk 0:02:57.2]} 5. Bg3 {[%clk 0:03:01.5]}
5... c5 {[%clk 0:02:55.5]} 6. c3 {[%clk 0:03:01.4]} 6... Nc6 {[%clk 0:02:55.1]}
7. Nbd2 {[%clk 0:03:01.6]} 7... Qe7 {[%clk 0:02:52.1]} 8. Ne5 {[%clk 0:03:00.6]}
8... Nd7 {[%clk 0:02:44.8]} 9. f4 {[%clk 0:02:40]} 9... O-O {[%clk 0:02:38.2]}
10. Bd3 {[%clk 0:02:39.3]} 10... f6 {[%clk 0:02:10.2]} 11. Nxc6 {[%clk
0:01:34.1]} 11... bxc6 {[%clk 0:02:09.7]} 12. O-O {[%clk 0:01:31.1]} 12... Rb8
{[%clk 0:02:05.7]} 13. b3 {[%clk 0:01:30.3]} 13... cxd4 {[%clk 0:01:54.9]} 14.
exd4 {[%clk 0:01:28.7]} 14... f5 {[%clk 0:01:52.6]} 15. Nf3 {[%clk 0:01:25.5]}
15... Nf6 {[%clk 0:01:52.5]} 16. Ne5 {[%clk 0:01:23.6]} 16... Qc7 {[%clk
0:01:52.4]} 17. c4 {[%clk 0:01:20.4]} 17... Ne4 {[%clk 0:01:41]} 18. Bxe4 {[%clk
0:01:08.9]} 18... dxe4 {[%clk 0:01:41.9]} 19. Rc1 {[%clk 0:01:07]} 19... Bb7
{[%clk 0:01:37.4]} 20. c5 {[%clk 0:00:50.8]} 20... Bxe5 {[%clk 0:01:37]} 21.
dxe5 {[%clk 0:00:48.9]} 21... Rbd8 {[%clk 0:01:37.4]} 22. Qe2 {[%clk 0:00:49.1]}
22... Rd3 {[%clk 0:01:33.5]} 23. Bh4 {[%clk 0:00:47.9]} 23... Ba6 {[%clk
0:01:33.5]} 24. Qf2 {[%clk 0:00:44.3]} 24... Rf7 {[%clk 0:01:33.3]} 25. Rfd1
{[%clk 0:00:44.2]} 25... Rfd7 {[%clk 0:01:33.4]} 26. Rxd3 {[%clk 0:00:42.8]}
26... Bxd3 {[%clk 0:01:33.8]} 27. h3 {[%clk 0:00:42.3]} 27... Qa5 {[%clk
0:01:30.4]} 28. Kh2 {[%clk 0:00:40.5]} 28... h6 {[%clk 0:01:16.1]} 29. Qe3
{[%clk 0:00:40.2]} 29... Qxa2 {[%clk 0:01:14.2]} 30. b4 {[%clk 0:00:38.9]} 30...
Bb5 {[%clk 0:01:13.2]} 31. Qg3 {[%clk 0:00:22]} 31... Kh7 {[%clk 0:01:12.1]} 32.
Rc3 {[%clk 0:00:20.2]} 32... Bf1 {[%clk 0:01:05]} 33. Ra3 {[%clk 0:00:18.4]}
33... Qb2 {[%clk 0:01:02]} 34. Ra6 {[%clk 0:00:17.5]} 34... Bxa6 {[%clk
0:01:01.1]} 0-1

[Event "*** SCC Grand Prix: Titled Tuesday Blitz"]
[Site "Chess.com"]
[Date "2020.06.02"]
[Round "2"]
[White "ZverevLev"]
[Black "Abund"]
[Result "1-0"]
[WhiteElo "2236"]
[BlackElo "2611"]
[TimeControl "180+1"]
[EndTime "10:16:34 PDT"]
[Termination "ZverevLev won by resignation"]

1. e4 {[%clk 0:03:00.9]} 1... c5 {[%clk 0:02:59.5]} 2. Nf3 {[%clk 0:02:59.4]}
2... Nc6 {[%clk 0:02:56.7]} 3. d4 {[%clk 0:02:58]} 3... cxd4 {[%clk 0:02:57.6]}
4. Nxd4 {[%clk 0:02:58.3]} 4... Nf6 {[%clk 0:02:58.2]} 5. Nc3 {[%clk 0:02:56.9]}
5... e5 {[%clk 0:02:58.4]} 6. Ndb5 {[%clk 0:02:55.7]} 6... d6 {[%clk 0:02:58.4]}
7. Bg5 {[%clk 0:02:54.9]} 7... a6 {[%clk 0:02:58.6]} 8. Na3 {[%clk 0:02:53.4]}
8... b5 {[%clk 0:02:58.9]} 9. Bxf6 {[%clk 0:02:50.6]} 9... gxf6 {[%clk
0:02:58.9]} 10. Nd5 {[%clk 0:02:50.5]} 10... f5 {[%clk 0:02:59.3]} 11. g3 {[%clk
0:02:49]} 11... fxe4 {[%clk 0:02:58.7]} 12. Bg2 {[%clk 0:02:47.6]} 12... Be6
{[%clk 0:02:57]} 13. Bxe4 {[%clk 0:02:45.8]} 13... Bg7 {[%clk 0:02:49.2]} 14.
Qh5 {[%clk 0:02:40.1]} 14... Rc8 {[%clk 0:02:46.7]} 15. c3 {[%clk 0:02:34.8]}
15... Ne7 {[%clk 0:02:41.4]} 16. Rd1 {[%clk 0:02:28]} 16... Nxd5 {[%clk
0:02:35.4]} 17. Bxd5 {[%clk 0:02:26]} 17... O-O {[%clk 0:02:33.9]} 18. O-O
{[%clk 0:02:22.4]} 18... Rc5 {[%clk 0:02:27.9]} 19. Bg2 {[%clk 0:02:18.1]} 19...
Qd7 {[%clk 0:02:17.6]} 20. Qh4 {[%clk 0:02:06.7]} 20... Bxa2 {[%clk 0:02:11]}
21. Nc2 {[%clk 0:02:03.8]} 21... Be6 {[%clk 0:01:53.9]} 22. Ne3 {[%clk
0:02:01.5]} 22... d5 {[%clk 0:01:52.9]} 23. b4 {[%clk 0:01:47.2]} 23... Rxc3
{[%clk 0:01:49.7]} 24. Bxd5 {[%clk 0:01:40.9]} 24... Qe8 {[%clk 0:01:04.1]} 25.
Be4 {[%clk 0:01:35.9]} 25... f5 {[%clk 0:01:00.1]} 26. Bxf5 {[%clk 0:01:33.6]}
26... h6 {[%clk 0:00:28.4]} 27. Qg4 {[%clk 0:01:29]} 27... Bc4 {[%clk
0:00:11.5]} 28. Nxc4 {[%clk 0:01:21.2]} 28... bxc4 {[%clk 0:00:10.5]} 29. Rd7
{[%clk 0:01:18.4]} 29... Rf7 {[%clk 0:00:05.8]} 30. Rxf7 {[%clk 0:01:16.3]}
30... Kxf7 {[%clk 0:00:05.2]} 31. Bg6+ {[%clk 0:01:15.1]} 1-0

[Event "*** SCC Grand Prix: Titled Tuesday Blitz"]
[Site "Chess.com"]
[Date "2020.06.02"]
[Round "2"]
[White "warmoatmeal"]
[Black "guillembaches"]
[Result "0-1"]
[WhiteElo "2220"]
[BlackElo "2441"]
[TimeControl "180+1"]
[EndTime "10:16:34 PDT"]
[Termination "guillembaches won by resignation"]

1. d4 {[%clk 0:03:00.9]} 1... Nf6 {[%clk 0:02:59.5]} 2. Nf3 {[%clk 0:03:01.5]}
2... e6 {[%clk 0:02:59.7]} 3. Bg5 {[%clk 0:03:01.9]} 3... h6 {[%clk 0:02:58.9]}
4. Bh4 {[%clk 0:03:01.7]} 4... d6 {[%clk 0:02:57.6]} 5. e3 {[%clk 0:03:01.4]}
5... g5 {[%clk 0:02:57.1]} 6. Bg3 {[%clk 0:03:01.4]} 6... Nh5 {[%clk 0:02:57.4]}
7. Nbd2 {[%clk 0:03:00.8]} 7... Bg7 {[%clk 0:02:57.2]} 8. c3 {[%clk 0:02:58.3]}
8... Qe7 {[%clk 0:02:57.2]} 9. Bd3 {[%clk 0:02:52.6]} 9... Nd7 {[%clk 0:02:57]}
10. Qe2 {[%clk 0:02:50.1]} 10... a6 {[%clk 0:02:56.3]} 11. O-O-O {[%clk
0:02:50]} 11... O-O {[%clk 0:02:53.6]} 12. Bc2 {[%clk 0:02:31.1]} 12... f5
{[%clk 0:02:51.3]} 13. h4 {[%clk 0:02:19.9]} 13... Nxg3 {[%clk 0:02:38.8]} 14.
fxg3 {[%clk 0:02:19.1]} 14... g4 {[%clk 0:02:39]} 15. Nh2 {[%clk 0:02:17.9]}
15... d5 {[%clk 0:02:37.2]} 16. Rde1 {[%clk 0:02:12.7]} 16... c5 {[%clk
0:02:35.8]} 17. Rhf1 {[%clk 0:02:10.7]} 17... b5 {[%clk 0:02:30.9]} 18. Nxg4
{[%clk 0:01:53.7]} 18... fxg4 {[%clk 0:02:24.9]} 19. Qxg4 {[%clk 0:01:54.6]}
19... Rxf1 {[%clk 0:02:09.5]} 20. Rxf1 {[%clk 0:01:54.3]} 20... Nf8 {[%clk
0:02:09.7]} 21. e4 {[%clk 0:01:52.3]} 21... e5 {[%clk 0:02:02.3]} 22. Qh5 {[%clk
0:01:46.3]} 22... cxd4 {[%clk 0:01:45]} 23. cxd4 {[%clk 0:01:44.3]} 23... Be6
{[%clk 0:01:40.4]} 24. dxe5 {[%clk 0:01:33.4]} 24... d4 {[%clk 0:01:35.1]} 25.
Bb3 {[%clk 0:01:06.9]} 25... Rc8+ {[%clk 0:01:23.2]} 26. Kb1 {[%clk 0:01:06]}
26... Bc4 {[%clk 0:01:15.5]} 27. Qe2 {[%clk 0:00:46.1]} 27... Bxb3 {[%clk
0:01:06.6]} 28. Nxb3 {[%clk 0:00:44.4]} 28... Qxe5 {[%clk 0:01:04.6]} 29. Rf5
{[%clk 0:00:27.4]} 29... d3 {[%clk 0:00:58.5]} 30. Qf2 {[%clk 0:00:16.5]} 30...
Qxe4 {[%clk 0:00:53.7]} 0-1

[Event "*** SCC Grand Prix: Titled Tuesday Blitz"]
[Site "Chess.com"]
[Date "2020.06.02"]
[Round "2"]
[White "Bulldog167"]
[Black "SCIM"]
[Result "1-0"]
[WhiteElo "2766"]
[BlackElo "2508"]
[TimeControl "180+1"]
[EndTime "10:16:36 PDT"]
[Termination "Bulldog167 won by resignation"]

1. Nf3 {[%clk 0:03:00.9]} 1... Nf6 {[%clk 0:02:56.4]} 2. e3 {[%clk 0:03:01]}
2... g6 {[%clk 0:02:56.1]} 3. b3 {[%clk 0:03:01.5]} 3... Bg7 {[%clk 0:02:56.6]}
4. Bb2 {[%clk 0:03:02.4]} 4... O-O {[%clk 0:02:56.5]} 5. Be2 {[%clk 0:03:02.7]}
5... c5 {[%clk 0:02:52.4]} 6. O-O {[%clk 0:02:59.9]} 6... Nc6 {[%clk 0:02:51.9]}
7. d4 {[%clk 0:02:58.6]} 7... cxd4 {[%clk 0:02:48.7]} 8. Nxd4 {[%clk 0:02:58.4]}
8... d5 {[%clk 0:02:39.3]} 9. Nxc6 {[%clk 0:02:57.3]} 9... bxc6 {[%clk
0:02:40.2]} 10. c4 {[%clk 0:02:56.5]} 10... a5 {[%clk 0:02:29]} 11. Nc3 {[%clk
0:02:55.7]} 11... Ba6 {[%clk 0:02:17.3]} 12. cxd5 {[%clk 0:02:53.3]} 12... cxd5
{[%clk 0:02:09.4]} 13. Rc1 {[%clk 0:02:45.1]} 13... e6 {[%clk 0:02:02.2]} 14.
Bxa6 {[%clk 0:02:43.7]} 14... Rxa6 {[%clk 0:02:03.1]} 15. Qd3 {[%clk 0:02:41.6]}
15... Ra8 {[%clk 0:01:51.1]} 16. Rc2 {[%clk 0:02:33.8]} 16... Ng4 {[%clk
0:01:43.8]} 17. h3 {[%clk 0:02:28.8]} 17... Ne5 {[%clk 0:01:42.5]} 18. Qe2
{[%clk 0:02:28.8]} 18... Nc6 {[%clk 0:01:40.2]} 19. Na4 {[%clk 0:02:10.7]} 19...
Nb4 {[%clk 0:01:33.2]} 20. Bxg7 {[%clk 0:02:09.9]} 20... Kxg7 {[%clk 0:01:32.7]}
21. Rc5 {[%clk 0:02:07.9]} 21... d4 {[%clk 0:01:08.3]} 22. exd4 {[%clk
0:01:56.1]} 22... Qxd4 {[%clk 0:01:05.5]} 23. Rd1 {[%clk 0:01:56.2]} 23... Qf6
{[%clk 0:01:01.4]} 24. Nb6 {[%clk 0:01:51.9]} 24... Rad8 {[%clk 0:00:49.4]} 25.
Nd7 {[%clk 0:01:31.9]} 25... Qe7 {[%clk 0:00:39.2]} 26. Rc7 {[%clk 0:01:19.6]}
26... Rfe8 {[%clk 0:00:25.6]} 27. Qe5+ {[%clk 0:01:17.9]} 27... f6 {[%clk
0:00:22.8]} 28. Nxf6 {[%clk 0:01:07.5]} 28... Rxd1+ {[%clk 0:00:21.2]} 29. Kh2
{[%clk 0:01:07.8]} 29... Kf7 {[%clk 0:00:09]} 30. Nxe8 {[%clk 0:01:04.2]} 30...
Kxe8 {[%clk 0:00:02.9]} 31. Qh8+ {[%clk 0:01:04.2]} 1-0

[Event "*** SCC Grand Prix: Titled Tuesday Blitz"]
[Site "Chess.com"]
[Date "2020.06.02"]
[Round "2"]
[White "ARTHURMOTIVATOR"]
[Black "oneshot007"]
[Result "0-1"]
[WhiteElo "2189"]
[BlackElo "2424"]
[TimeControl "180+1"]
[EndTime "10:16:39 PDT"]
[Termination "oneshot007 won by resignation"]

1. e4 {[%clk 0:03:00.9]} 1... g6 {[%clk 0:03:00.9]} 2. d4 {[%clk 0:03:00.2]}
2... Nf6 {[%clk 0:02:59.8]} 3. Nc3 {[%clk 0:02:57.5]} 3... d5 {[%clk 0:02:59.1]}
4. e5 {[%clk 0:02:55.3]} 4... Ne4 {[%clk 0:02:56.4]} 5. Bd3 {[%clk 0:02:55.7]}
5... Nxc3 {[%clk 0:02:55.8]} 6. bxc3 {[%clk 0:02:56.3]} 6... c5 {[%clk
0:02:56.2]} 7. Nf3 {[%clk 0:02:54.8]} 7... Nc6 {[%clk 0:02:49.7]} 8. O-O {[%clk
0:02:52.1]} 8... Qa5 {[%clk 0:02:44]} 9. c4 {[%clk 0:02:32.2]} 9... cxd4 {[%clk
0:02:34]} 10. cxd5 {[%clk 0:02:27.9]} 10... Qxd5 {[%clk 0:02:34.9]} 11. Qe2
{[%clk 0:02:26.1]} 11... Bg4 {[%clk 0:02:19.7]} 12. Bf4 {[%clk 0:02:01.8]} 12...
Bxf3 {[%clk 0:02:07.6]} 13. gxf3 {[%clk 0:02:00.2]} 13... Bg7 {[%clk 0:02:02.3]}
14. Rab1 {[%clk 0:01:35.9]} 14... O-O {[%clk 0:01:53.6]} 15. Rxb7 {[%clk
0:00:54.7]} 15... Nxe5 {[%clk 0:01:51]} 16. Be4 {[%clk 0:00:53.4]} 16... Qe6
{[%clk 0:01:46.8]} 17. Qb5 {[%clk 0:00:40.1]} 17... a6 {[%clk 0:01:11.6]} 18.
Qb4 {[%clk 0:00:29.4]} 18... Qf6 {[%clk 0:00:56.5]} 19. Bxe5 {[%clk 0:00:25.5]}
19... Qxe5 {[%clk 0:00:57.4]} 20. Rxe7 {[%clk 0:00:25.3]} 20... Qg5+ {[%clk
0:00:51.3]} 21. Kh1 {[%clk 0:00:24.2]} 21... Rab8 {[%clk 0:00:46.5]} 22. Qa3
{[%clk 0:00:23.7]} 22... Be5 {[%clk 0:00:39.2]} 23. h3 {[%clk 0:00:19.2]} 23...
Qf4 {[%clk 0:00:38.1]} 0-1

[Event "*** SCC Grand Prix: Titled Tuesday Blitz"]
[Site "Chess.com"]
[Date "2020.06.02"]
[Round "2"]
[White "vovachesss"]
[Black "Quattroporte300"]
[Result "1-0"]
[WhiteElo "2645"]
[BlackElo "2317"]
[TimeControl "180+1"]
[EndTime "10:16:40 PDT"]
[Termination "vovachesss won by resignation"]

1. d4 {[%clk 0:02:56.2]} 1... Nf6 {[%clk 0:02:58.1]} 2. Nc3 {[%clk 0:02:53.4]}
2... d5 {[%clk 0:02:57.6]} 3. Bf4 {[%clk 0:02:52.6]} 3... a6 {[%clk 0:02:55.7]}
4. e3 {[%clk 0:02:46.3]} 4... Bf5 {[%clk 0:02:54]} 5. Nf3 {[%clk 0:02:44.3]}
5... Nbd7 {[%clk 0:02:44.6]} 6. Ne5 {[%clk 0:02:44.2]} 6... e6 {[%clk
0:02:41.8]} 7. g4 {[%clk 0:02:44]} 7... Bg6 {[%clk 0:02:29.3]} 8. h4 {[%clk
0:02:44.1]} 8... Bb4 {[%clk 0:01:19.7]} 9. h5 {[%clk 0:02:41.2]} 9... Ne4 {[%clk
0:01:15]} 10. hxg6 {[%clk 0:02:08.3]} 10... Nxc3 {[%clk 0:01:06.1]} 11. gxf7+
{[%clk 0:01:55.3]} 11... Kf8 {[%clk 0:01:04]} 12. Qd2 {[%clk 0:01:53.1]} 12...
Nf6 {[%clk 0:00:42.1]} 13. Bd3 {[%clk 0:01:23.7]} 13... c5 {[%clk 0:00:26.4]}
14. bxc3 {[%clk 0:01:19.8]} 14... Ba5 {[%clk 0:00:26.6]} 15. Ng6+ {[%clk
0:01:11]} 15... Kxf7 {[%clk 0:00:20.8]} 16. Nxh8+ {[%clk 0:01:11.1]} 16... Qxh8
{[%clk 0:00:21.3]} 17. dxc5 {[%clk 0:01:09.2]} 17... g5 {[%clk 0:00:17.6]} 18.
Be5 {[%clk 0:01:08.9]} 18... Qc8 {[%clk 0:00:11]} 19. e4 {[%clk 0:00:44.6]}
19... Qxc5 {[%clk 0:00:10.4]} 20. Qxg5 {[%clk 0:00:41.9]} 20... Bxc3+ {[%clk
0:00:07.7]} 21. Ke2 {[%clk 0:00:39.5]} 21... Bxe5 {[%clk 0:00:02.6]} 22. Qxe5
{[%clk 0:00:40.4]} 1-0

[Event "*** SCC Grand Prix: Titled Tuesday Blitz"]
[Site "Chess.com"]
[Date "2020.06.02"]
[Round "2"]
[White "Aygehovit1992"]
[Black "M1711"]
[Result "1-0"]
[WhiteElo "2722"]
[BlackElo "2476"]
[TimeControl "180+1"]
[EndTime "10:16:42 PDT"]
[Termination "Aygehovit1992 won by resignation"]

1. e4 {[%clk 0:03:00.9]} 1... e5 {[%clk 0:02:59.2]} 2. Nf3 {[%clk 0:03:00.5]}
2... Nc6 {[%clk 0:02:59.2]} 3. Bb5 {[%clk 0:02:59.9]} 3... a6 {[%clk 0:02:59.1]}
4. Ba4 {[%clk 0:02:59.7]} 4... Nf6 {[%clk 0:02:59.1]} 5. d3 {[%clk 0:02:59.6]}
5... d6 {[%clk 0:02:51.1]} 6. c4 {[%clk 0:02:58.9]} 6... g6 {[%clk 0:02:50.2]}
7. Nc3 {[%clk 0:02:59]} 7... Bg7 {[%clk 0:02:46.8]} 8. Nd5 {[%clk 0:02:58.9]}
8... O-O {[%clk 0:02:43.9]} 9. Bg5 {[%clk 0:02:58.4]} 9... Bg4 {[%clk
0:02:34.6]} 10. h3 {[%clk 0:02:54.3]} 10... Bxf3 {[%clk 0:02:10.4]} 11. Qxf3
{[%clk 0:02:52.6]} 11... Nd4 {[%clk 0:02:10.6]} 12. Qxf6 {[%clk 0:02:52.6]}
12... Bxf6 {[%clk 0:01:29]} 13. Bxf6 {[%clk 0:02:52.4]} 13... b5 {[%clk
0:01:17.9]} 14. Bxd8 {[%clk 0:02:50.6]} 14... Rfxd8 {[%clk 0:01:13.6]} 15. Bd1
{[%clk 0:02:50]} 15... bxc4 {[%clk 0:01:12.5]} 16. dxc4 {[%clk 0:02:50.9]} 16...
c6 {[%clk 0:01:10.8]} 17. Nc3 {[%clk 0:02:48.4]} 17... Rab8 {[%clk 0:01:08.1]}
18. b3 {[%clk 0:02:48.4]} 18... Kg7 {[%clk 0:01:08.3]} 19. Kd2 {[%clk
0:02:48.1]} 19... a5 {[%clk 0:01:05.3]} 20. Re1 {[%clk 0:02:47.6]} 20... h5
{[%clk 0:01:02.4]} 21. Rb1 {[%clk 0:02:47.3]} 21... h4 {[%clk 0:01:01.4]} 22. a3
{[%clk 0:02:47.2]} 22... Ra8 {[%clk 0:00:49.8]} 23. b4 {[%clk 0:02:45.1]} 23...
axb4 {[%clk 0:00:49.8]} 24. axb4 {[%clk 0:02:46]} 24... Rdb8 {[%clk 0:00:46.7]}
25. Rb2 {[%clk 0:02:44.5]} 25... Ra1 {[%clk 0:00:22.9]} 26. Bf3 {[%clk
0:02:31.8]} 26... Rxe1 {[%clk 0:00:22.3]} 27. Kxe1 {[%clk 0:02:31.4]} 27... Rxb4
{[%clk 0:00:22.3]} 28. Rxb4 {[%clk 0:02:31.9]} 28... Nc2+ {[%clk 0:00:21.5]} 29.
Kd2 {[%clk 0:02:32.5]} 29... Nxb4 {[%clk 0:00:22.4]} 30. Na4 {[%clk 0:02:31.2]}
30... Kf6 {[%clk 0:00:20.6]} 31. Kc3 {[%clk 0:02:27.4]} 31... c5 {[%clk
0:00:20.6]} 32. Nb6 {[%clk 0:02:25.4]} 32... Nc6 {[%clk 0:00:21]} 33. Nd5+
{[%clk 0:02:25.3]} 33... Ke6 {[%clk 0:00:20.6]} 34. g3 {[%clk 0:02:14.1]} 34...
hxg3 {[%clk 0:00:10.9]} 35. fxg3 {[%clk 0:02:15]} 35... Nd4 {[%clk 0:00:11.8]}
36. Bd1 {[%clk 0:02:14.9]} 36... f5 {[%clk 0:00:11.7]} 37. Kd3 {[%clk 0:02:13]}
37... Nc6 {[%clk 0:00:05.9]} 38. h4 {[%clk 0:02:11.8]} 38... Nd4 {[%clk
0:00:05]} 39. h5 {[%clk 0:02:10.7]} 39... gxh5 {[%clk 0:00:05.4]} 40. Bxh5
{[%clk 0:02:10.4]} 40... Nc6 {[%clk 0:00:03.3]} 41. Bf3 {[%clk 0:02:08]} 41...
Nd4 {[%clk 0:00:03.3]} 42. exf5+ {[%clk 0:02:06]} 42... Kxf5 {[%clk 0:00:03.4]}
43. Bd1 {[%clk 0:02:04.9]} 43... Ne6 {[%clk 0:00:02]} 44. Ke3 {[%clk 0:02:04.5]}
44... Nd4 {[%clk 0:00:02]} 45. g4+ {[%clk 0:02:02.8]} 45... Kg5 {[%clk
0:00:02.4]} 46. Ke4 {[%clk 0:02:02.6]} 46... Ne6 {[%clk 0:00:02.5]} 47. Ne7
{[%clk 0:01:59.3]} 47... Nf4 {[%clk 0:00:02.7]} 48. Nf5 {[%clk 0:01:58.9]} 48...
d5+ {[%clk 0:00:01.8]} 49. cxd5 {[%clk 0:01:58.6]} 49... Kf6 {[%clk 0:00:02.7]}
50. d6 {[%clk 0:01:58.3]} 50... Ke6 {[%clk 0:00:02.4]} 51. Bb3+ {[%clk 0:01:58]}
51... Kf6 {[%clk 0:00:02.7]} 52. d7 {[%clk 0:01:57.6]} 52... Ne6 {[%clk
0:00:02.9]} 53. Bxe6 {[%clk 0:01:57.3]} 53... Kg5 {[%clk 0:00:03.8]} 54. d8=Q+
{[%clk 0:01:57.8]} 1-0

[Event "*** SCC Grand Prix: Titled Tuesday Blitz"]
[Site "Chess.com"]
[Date "2020.06.02"]
[Round "2"]
[White "Maxim_e2e4"]
[Black "luizwas"]
[Result "1-0"]
[WhiteElo "2340"]
[BlackElo "1851"]
[TimeControl "180+1"]
[EndTime "10:16:42 PDT"]
[Termination "Maxim_e2e4 won by checkmate"]

1. e4 {[%clk 0:03:00.9]} 1... e6 {[%clk 0:03:00.4]} 2. d4 {[%clk 0:03:00.2]}
2... d5 {[%clk 0:03:00.8]} 3. Nd2 {[%clk 0:02:59]} 3... Nc6 {[%clk 0:03:00]} 4.
Ngf3 {[%clk 0:02:58]} 4... Nf6 {[%clk 0:02:59.6]} 5. e5 {[%clk 0:02:58.4]} 5...
Nd7 {[%clk 0:03:00]} 6. Be2 {[%clk 0:02:56.4]} 6... f6 {[%clk 0:03:00.5]} 7.
exf6 {[%clk 0:02:56.8]} 7... Qxf6 {[%clk 0:03:01.3]} 8. Nf1 {[%clk 0:02:57]}
8... Bd6 {[%clk 0:03:01]} 9. Ne3 {[%clk 0:02:56.8]} 9... O-O {[%clk 0:03:00.4]}
10. O-O {[%clk 0:02:56.8]} 10... Qg6 {[%clk 0:02:51.6]} 11. c4 {[%clk
0:02:54.3]} 11... Nf6 {[%clk 0:02:50.4]} 12. c5 {[%clk 0:02:50.4]} 12... Be7
{[%clk 0:02:44.8]} 13. Bb5 {[%clk 0:02:49.3]} 13... Qh5 {[%clk 0:02:23]} 14.
Bxc6 {[%clk 0:02:40.9]} 14... bxc6 {[%clk 0:02:23.9]} 15. Ne5 {[%clk 0:02:40.9]}
15... Qxd1 {[%clk 0:02:11.3]} 16. Rxd1 {[%clk 0:02:40.2]} 16... Ne4 {[%clk
0:01:38.8]} 17. f3 {[%clk 0:02:36.5]} 17... Ng5 {[%clk 0:01:30.9]} 18. Nxc6
{[%clk 0:02:34.5]} 18... Bf6 {[%clk 0:01:28.5]} 19. Ng4 {[%clk 0:02:33]} 19...
Bb7 {[%clk 0:01:00.9]} 20. Nce5 {[%clk 0:02:25.6]} 20... Bxe5 {[%clk 0:00:58.3]}
21. Nxe5 {[%clk 0:02:24]} 21... Nf7 {[%clk 0:00:57.8]} 22. Bf4 {[%clk
0:02:16.6]} 22... Nxe5 {[%clk 0:00:56.8]} 23. Bxe5 {[%clk 0:02:16.5]} 23... Ba6
{[%clk 0:00:56.1]} 24. Bxc7 {[%clk 0:02:12.7]} 24... Bb5 {[%clk 0:00:40.1]} 25.
a4 {[%clk 0:02:05.2]} 25... Bc4 {[%clk 0:00:38.5]} 26. b4 {[%clk 0:02:04.7]}
26... Rfc8 {[%clk 0:00:35.9]} 27. Be5 {[%clk 0:02:00.8]} 27... Kf7 {[%clk
0:00:33.1]} 28. b5 {[%clk 0:02:00.1]} 28... g5 {[%clk 0:00:27.6]} 29. Kf2 {[%clk
0:01:58.4]} 29... a6 {[%clk 0:00:27.3]} 30. b6 {[%clk 0:01:51.2]} 30... Rcb8
{[%clk 0:00:17.9]} 31. Bxb8 {[%clk 0:01:49.9]} 31... Rxb8 {[%clk 0:00:18.8]} 32.
a5 {[%clk 0:01:47.8]} 32... Kf6 {[%clk 0:00:18.9]} 33. c6 {[%clk 0:01:47]} 33...
Ke7 {[%clk 0:00:16.6]} 34. c7 {[%clk 0:01:44]} 34... Rc8 {[%clk 0:00:14.2]} 35.
b7 {[%clk 0:01:42.8]} 35... Kd7 {[%clk 0:00:14.8]} 36. b8=Q {[%clk 0:01:38]}
36... Rxc7 {[%clk 0:00:14.1]} 37. Rab1 {[%clk 0:01:34.6]} 37... Bb5 {[%clk
0:00:14.1]} 38. Rxb5 {[%clk 0:01:31.6]} 38... axb5 {[%clk 0:00:13.7]} 39. Qxb5+
{[%clk 0:01:31.4]} 39... Ke7 {[%clk 0:00:14.6]} 40. Rd2 {[%clk 0:01:30]} 40...
Rc2 {[%clk 0:00:15.5]} 41. Rxc2 {[%clk 0:01:29.6]} 41... Kf6 {[%clk 0:00:16.4]}
42. a6 {[%clk 0:01:28.9]} 42... e5 {[%clk 0:00:17.3]} 43. Qxd5 {[%clk
0:01:27.6]} 43... Kf5 {[%clk 0:00:18.2]} 44. Qxe5+ {[%clk 0:01:27]} 44... Kg6
{[%clk 0:00:17.8]} 45. Rc7 {[%clk 0:01:23]} 45... g4 {[%clk 0:00:18]} 46. Rg7+
{[%clk 0:01:21.7]} 46... Kh6 {[%clk 0:00:17.3]} 47. Qg5# {[%clk 0:01:21.6]} 1-0